[Event "SRB-ch Women Semifinal 2019"]
[Site "Kragujevac"]
[Date "2019.03.11"]
[Round "6.2"]
[White "Grozdanovic, Anastasia"]
[Black "Vujcic, Milena"]
[Result "0-1"]
[ECO "A01"]
[WhiteElo "1635"]
[BlackElo "1958"]
[Annotator "NA RC"]
[PlyCount "78"]
[EventDate "2019.03.08"]
[EventType "swiss"]
[EventCountry "SRB"]
[SourceTitle "playchess.com"]
[Source "ChessBase"]
[SourceQuality "1"]
[TimeControl "40/5400+30:1800+30"]

1. b3 {[%emt 0:00:00]} d5 {[%emt 0:00:26]} 2. Bb2 {[%emt 0:00:00]} c5 {[%emt 0:01:37]} 3. e3 {[%emt 0:01:21]} Nc6 {[%emt 0:00:29]} 4. Bb5 {[%emt 0:02:03]} Nf6 {[%emt 0:03:13]} 5. Nf3 {[%emt 0:01:09]} g6 {[%emt 0:01:24] A06: Réti Opening:1 Nf3 d5} (5... Bd7 6. c4 a6 7. Bxc6 Bxc6 8. Ne5 Rc8 9. O-O e6 10. d3 Be7 11. Nd2 O-O 12. f4 Nd7 13. Nxc6 Rxc6 {1-0 (33) Karjakin,S (2773)-Duda,J (2737) chess.com INT 2018}) 6. O-O {[%emt 0:03:10]} Bg7 {[%emt 0:00:04]} 7. d4 {[%emt 0:02:20]} cxd4 {[%emt 0:01:02]} 8. Nxd4 $146 {[%emt 0:03:54]} ({Predecessor:} 8. Qxd4 O-O 9. Qh4 Qd7 10. c4 a6 11. Bxc6 bxc6 12. h3 h6 13. cxd5 cxd5 14. Nbd2 g5 15. Qd4 Qd6 16. Rac1 Bd7 17. Rfd1 Rac8 18. Qa7 {½-½ (18) Pivirotto,F (1866)-Graziani,M (2240) ICCF email 2009}) 8... Qc7 {[%emt 0:00:50]} 9. Nxc6 $2 {[%emt 0:03:49]} (9. Nf3 $11 {and White is okay.}) 9... bxc6 {[%emt 0:00:06]} 10. Be2 {[%emt 0:00:09]} O-O {[%emt 0:00:29]} 11. Nd2 {[%emt 0:01:52]} e5 {[%emt 0:02:54]} (11... Ng4 $5 12. Bxg4 Bxb2 $15) 12. Nf3 {[%emt 0:06:27]} (12. c4 $11) 12... Re8 {[%emt 0:05:18]} (12... Ng4 $15 13. g3 (13. h3 $2 e4 $19 {[%mdl 64] Discovered Attack}) 13... e4 14. Bxg7 Kxg7 15. Qd4+ Nf6) 13. c4 {[%emt 0:04:36]} Bb7 {[%emt 0:12:36]} 14. Qc2 {[%emt 0:05:30]} Qd6 {[%emt 0:04:47]} 15. Rfd1 {[%emt 0:05:26]} Nd7 {[%emt 0:05:05]} 16. Rac1 {[%emt 0:03:24]} Rac8 {[%emt 0:03:02]} 17. c5 {[%emt 0:04:41]} Qc7 {[%emt 0:02:10]} 18. b4 {[%emt 0:12:45]} a5 {[%emt 0:06:42]} 19. a3 {[%emt 0:03:24]} Nb8 {[%emt 0:04:40]} 20. Bc3 {[%emt 0:15:46]} axb4 {[%emt 0:00:36]} 21. axb4 {[%emt 0:00:05]} Rcd8 $14 {[%emt 0:04:09]} ({Black should play} 21... Qe7 $11) 22. Qb2 {[%emt 0:02:00]} Qe7 {[%emt 0:07:56]} 23. Rc2 {[%emt 0:03:56]} g5 {[%emt 0:11:15]} 24. Rcd2 {[%emt 0:08:20]} g4 {[%emt 0:01:07]} 25. Ne1 {[%emt 0:00:05]} d4 {[%emt 0:03:15]} 26. exd4 {[%emt 0:00:05]} exd4 {[%emt 0:00:02]} 27. Bxd4 {[%emt 0:00:46]} Bxd4 {[%emt 0:00:05]} 28. Rxd4 {[%emt 0:00:08]} Rxd4 {[%emt 0:00:09]} 29. Rxd4 {[%emt 0:00:07]} Qxe2 {[%emt 0:00:13]} 30. Qxe2 {[%emt 0:00:10]} Rxe2 {[%emt 0:00:03]} 31. Rd8+ {[%emt 0:00:16]} Kg7 {[%emt 0:00:06]} 32. Kf1 {[%emt 0:00:04]} Ba6 {[%emt 0:00:34]} 33. Nd3 {[%emt 0:00:47]} Bxd3 {[%emt 0:00:08]} 34. Rxd3 {[%emt 0:00:02]} Rb2 {[%emt 0:00:14]} 35. Rd4 {[%emt 0:00:06]} h5 {[%emt 0:00:06]} 36. h3 {[%emt 0:00:33]} gxh3 {[%emt 0:00:04]} 37. gxh3 {[%emt 0:00:04]} Na6 {[%emt 0:00:09]} 38. Kg2 {[%emt 0:00:39]} Rxb4 {[%emt 0:00:15]} 39. Rd6 {[%emt 0:01:06]} Nb8 {[%emt 0:00:03]} 0-1

[Event "SRB-ch Women Semifinal 2019"]
[Site "Kragujevac"]
[Date "2019.03.12"]
[Round "7.2"]
[White "Vujcic, Milena"]
[Black "Nestorovic, Katarina"]
[Result "1/2-1/2"]
[ECO "B40"]
[WhiteElo "1958"]
[BlackElo "2040"]
[Annotator "NA RC"]
[PlyCount "31"]
[EventDate "2019.03.08"]
[EventType "swiss"]
[EventCountry "SRB"]
[SourceTitle "playchess.com"]
[Source "ChessBase"]
[SourceQuality "1"]
[TimeControl "40/5400+30:1800+30"]

{[%evp 8,30,64,29,32767,14,20,22,14,0,13,11,14,-8,32767,13,12,32767,32767,32767,15,32767,32767,32767,147]} 1. e4 {[%emt 0:00:00]} c5 {[%emt 0:00:00]} 2. Nf3 {[%emt 0:00:00]} e6 {[%emt 0:00:00]} 3. d4 {[%emt 0:00:00]} cxd4 {[%emt 0:00:00]} 4. Nxd4 {[%emt 0:00:00]} d6 {[%emt 0:00:00]} 5. Nc3 {[%emt 0:00:28]} a6 {[%emt 0:00:55]} 6. a4 {[%emt 0:06:47]} Nc6 {[%emt 0:08:44]} 7. Be3 {[%emt 0:02:30]} Nf6 {[%emt 0:00:36]} 8. Be2 {[%emt 0:01:52]} Be7 {[%emt 0:01:00]} 9. O-O {[%emt 0:00:09]} O-O {[%emt 0:00:20]} 10. Kh1 {[%emt 0:03:29]} Qc7 {[%emt 0:07:31]} 11. f4 {[%emt 0:01:46]} Nxd4 {[%emt 0:01:02]} 12. Qxd4 {[%emt 0:03:13]} e5 {[%emt 0:02:33]} 13. Qd2 {[%emt 0:00:52]} Bd7 {[%emt 0:01:35]} 14. Nd5 {[%emt 0:04:46]} Nxd5 {[%emt 0:00:49]} 15. exd5 {[%emt 0:00:20]} b5 $16 {[%emt 0:14:32]} (15... exf4 $11 16. Rxf4 (16. Bxf4 Bf5 $14) 16... Rae8) 16. axb5 {[%emt 0:17:44]} 1/2-1/2

[Event "SRB-ch Women Semifinal 2019"]
[Site "Kragujevac"]
[Date "2019.03.14"]
[Round "9.4"]
[White "Drljevic, Ljilja"]
[Black "Grozdanovic, Anastasia"]
[Result "1-0"]
[ECO "A00"]
[WhiteElo "2188"]
[BlackElo "1635"]
[Annotator "NA"]
[PlyCount "55"]
[EventDate "2019.03.08"]
[EventType "swiss"]
[EventCountry "SRB"]
[SourceTitle "playchess.com"]
[Source "ChessBase"]
[SourceQuality "1"]
[TimeControl "40/5400+30:1800+30"]

1. b4 d5 2. Bb2 Bf5 3. Nf3 e6 4. a3 Nf6 5. g3 c6 6. Bg2 Be7 7. O-O O-O 8. d3 Nbd7 9. Nbd2 Qc7 10. Nh4 Bg6 11. e4 dxe4 12. Nxg6 hxg6 13. dxe4 Kh7 14. Qe2 Rh8 15. e5 Nd5 16. c4 N5b6 $16 17. f4 Kg8 18. Ne4 a5 19. Nd6 Na4 20. Rad1 Nxb2 21. Qxb2 Bxd6 22. Rxd6 Nb6 23. Qd4 axb4 24. axb4 Ra4 25. f5 Rh6 26. fxe6 fxe6 27. Rd8+ Kh7 28. Rff8 1-0